Cogmind - Beta 11 X5 @@@ ROGUE MODE // 2021.07.14 @ 19:52:00 Player: AlmondRoll Result: Escaped! Performance ------------- Evolutions (9) 4500 Regions Visited (26) 5200 Robots Destroyed (489) 2445 Value Destroyed (27272) 27272 Prototype IDs (45) 900 Alien Tech Used (0) 0 Bonus (15244) 15244 TOTAL SCORE: 55561 Bonus ------- High Alert Combat Kills 3452 Follower Combat Kills 4047 Entered Garrisons 1600 Used RIF Installer 4000 Met Zhirov 300 Win 3000 Friendly Fire -1155 Cogmind --------- Core Integrity 1347/1600 Matter 224/300 Energy 670/690 System Corruption 0% Temperature Cool (18) Movement Treading (173) Location To Epsilon Eridani Parts ------- > --- POWER (3) -------- Quantum Reactor Light Quantum Reactor Reinforced Quantum Reactor > --- PROPULSION (6) --- Armored Heavy Treads Armored Heavy Treads Improved Heavy Siege Treads > --- UTILITY (13) ----- Advanced Cooling System Advanced Cooling System Huge Storage Unit Advanced Target Analyzer Improved Weapon Cycler Advanced Transmission Jammer Experimental Thermal Shield Relay Coupler [NC] (12) Relay Coupler [Swarmer] (1) Relay Coupler [Grunt] (12) Relay Coupler [Sentry] (3) Relay Coupler [Hunter] (4) > --- WEAPON (3) ------- Heavy Neutron Cannon Linear Accelerator Linear Accelerator > --- INVENTORY (25) --- Light Quantum Reactor Light Quantum Reactor Light Quantum Reactor Advanced Heavy Treads Biometal Heavy Treads Biometal Heavy Treads Matter Compressor (250) Energy Filter Heavy Reflective Plating Medium Insulated Plating Heavy Insulated Plating Advanced Component Analysis Suite Improved System Restoration Module Improved System Restoration Module Improved System Restoration Module Phase Gun Gamma Bomb Array Ragnarok Missile Launcher Advanced Remote Datajack Peak State ------------ > --- POWER ------------ Quantum Reactor Light Quantum Reactor Light Quantum Reactor > --- PROPULSION ------- Improved Heavy Siege Treads Improved Heavy Siege Treads Advanced Heavy Siege Treads > --- UTILITY ---------- Advanced Cooling System Advanced Cooling System Huge Storage Unit Advanced Target Analyzer Advanced Transmission Jammer Experimental Thermal Shield Relay Coupler [NC] Relay Coupler [Swarmer] Relay Coupler [Grunt] Relay Coupler [Sentry] Relay Coupler [Hunter] Improved System Restoration Module Improved System Restoration Module > --- WEAPON ----------- Heavy Neutron Cannon Enhanced Nova Cannon Advanced Remote Datajack > --- INVENTORY -------- Light Quantum Reactor Light Quantum Reactor Advanced Heavy Treads Improved Heavy Siege Treads Biometal Heavy Treads Biometal Heavy Treads Advanced Cooling System Matter Compressor Energy Filter Improved Weapon Cycler Medium Insulated Plating Medium Insulated Plating Medium Insulated Plating Advanced Component Analysis Suite Improved System Restoration Module Phase Gun Phase Gun Linear Accelerator Linear Accelerator Gamma Bomb Array Ragnarok Missile Launcher [Rating: 185] Favorites ----------- Power Improved Deuterium Engine Engine Improved Deuterium Engine Power Core Neutrino Core Reactor Light Quantum Reactor Propulsion Armored Huge Wheel Treads Centrium Heavy Treads Leg Aluminum Leg Wheel Armored Huge Wheel Utility Huge Storage Unit Device Advanced Cooling System Storage Huge Storage Unit Processor Advanced Target Analyzer Hackware Relay Coupler [Swarmer] Protection Hardened Medium Armor Plating Weapon Heavy Assault Rifle Energy Gun Heavy Laser Energy Cannon Heavy Ion Cannon Ballistic Gun Heavy Assault Rifle Ballistic Cannon Magnetic Acceleration Cannon Launcher Precision Grenade Launcher Special Weapon Improved Remote Datajack Piercing Weapon Spear Build | -11 -10 -10 -9 -9 -9 -8 -8 -8 -8 -7 -7 -6 -6 -5 -5 -5 -5 -5 -4 -4 -4 -4 -3 -3 -2 -1 ------- Run | Scr Mat Min Mat Sto Gar Mat Gar Mat Gar Fac Gar Fac Gar Fac Ext Cet Arc Hub Fac Gar Fac Gar Res Gar Res Acc Slots Evolved 18 | . . . 2 . . 2 . . . 2 . 2 . 2 . . . . 2 . . . 2 . 2 2 Power 2 | . . . . . . . . . . 1 . . . 1 . . . . . . . . . . . . Propulsion 4 | . . . . . . . . . . . . . . . . . . . 2 . . . . . 2 . Utility 11 | . . . 1 . . 2 . . . 1 . 2 . 1 . . . . . . . . 2 . . 2 Weapon 1 | . . . 1 . . . . . . . . . . . . . . . . . . . . . . . Parts Attached 701 | 2 2 7 48 10 16 23 19 7 21 12 49 26 24 38 22 6 5 5 19 33 21 15 90 61 30 90 Power 65 | . . 1 3 1 2 1 . 1 1 3 3 . 1 4 . . . . 1 6 2 3 16 3 3 10 Engine 17 | . . 1 3 1 . 1 . 1 1 2 3 . 1 1 . . . . 1 1 . . . . . . Core 11 | . . . . . 2 . . . . 1 . . . 3 . . . . . . . 2 3 . . . Reactor 37 | . . . . . . . . . . . . . . . . . . . . 5 2 1 13 3 3 10 Propulsion 48 | 2 . 1 9 2 2 5 1 . . 1 1 1 . . . 2 . . 2 1 1 . 9 2 2 4 Treads 19 | . . . 2 . . . . . . . . . . . . 1 . . 2 1 1 . 4 2 2 4 Leg . | . . . . . . . . . . . . . . . . . . . . . . . . . . . Wheel 29 | 2 . 1 7 2 2 5 1 . . 1 1 1 . . . 1 . . . . . . 5 . . . Hover . | . . . . . . . . . . . . . . . . . . . . . . . . . . . Flight . | . . . . . . . . . . . . . . . . . . . . . . . . . . . Utility 304 | . 2 1 8 2 3 12 13 4 13 3 24 18 7 24 10 3 2 3 12 15 13 9 46 20 9 28 Device 188 | . 1 1 3 1 3 9 5 1 4 1 7 12 4 16 7 1 2 3 7 9 8 5 36 13 3 26 Storage 6 | . 1 . 1 . . . . 1 . . . . . . . . . . . . . . . . 2 1 Processor 6 | . . . . . . . . . . . . . . . . 1 . . . . 1 . 3 1 . . Hackware 45 | . . . . . . . 2 . . . 10 6 1 5 3 . . . . 2 2 3 4 2 4 1 Protection 59 | . . . 4 1 . 3 6 2 9 2 7 . 2 3 . 1 . . 5 4 2 1 3 4 . . Artifact . | . . . . . . . . . . . . . . . . . . . . . . . . . . . Weapon 284 | . . 4 28 5 9 5 5 2 7 5 21 7 16 10 12 1 3 2 4 11 5 3 19 36 16 48 Energy Gun 48 | . . . 1 . . . . . 1 2 5 . . . . . . . . 1 . . 2 14 6 16 Energy Cannon 21 | . . . 1 . . . 3 1 3 . 1 . . . . . . . . . . . . 2 5 5 Ballistic Gun 65 | . . 2 21 5 7 3 1 . . 1 1 . 1 . 1 . 1 . 4 3 . 1 1 9 1 2 Ballistic Cannon 69 | . . . . . . . . . . . 7 2 10 5 6 1 1 2 . 4 3 2 11 5 3 7 Launcher 27 | . . 2 5 . 2 2 1 1 3 2 2 2 2 . . . . . . . . . . 1 . 2 Special Weapon 53 | . . . . . . . . . . . 4 3 3 5 5 . 1 . . 3 2 . 5 5 1 16 Impact Weapon . | . . . . . . . . . . . . . . . . . . . . . . . . . . . Slashing Weapon . | . . . . . . . . . . . . . . . . . . . . . . . . . . . Piercing Weapon 1 | . . . . . . . . . . . 1 . . . . . . . . . . . . . . . Special Melee Weapon . | . . . . . . . . . . . . . . . . . . . . . . . . . . . Unidentified Prototypes 12 | . . . 3 . . . . 1 . . . 1 . . . 1 . . 1 1 . . 3 . 1 . Corrupted Parts 10 | . . . . . . . . . . . . . . . . 1 . . 1 . . . . 8 . . System Corruption 42 | . . . . . . . . . . . . . . . . 1 . . 3 . . . . 38 . . Parts Lost 78 | . . 2 9 4 7 . 5 1 1 . 10 . . . . . 3 2 3 4 4 2 9 5 2 5 Power 13 | . . 1 1 . 1 . . . 1 . 2 . . . . . . . 2 1 2 . . 2 . . Propulsion 12 | . . 1 3 2 2 . . . . . 1 . . . . . . . . . . . 2 . . 1 Utility 34 | . . . 1 1 2 . 5 1 . . 5 . . . . . 1 . 1 3 2 1 5 2 2 2 Weapon 19 | . . . 4 1 2 . . . . . 2 . . . . . 2 2 . . . 1 2 1 . 2 Highest Loss Streak 10 | . . 1 3 2 3 . 2 1 1 . 10 . . . . . 3 2 1 3 2 2 3 2 1 3 Average Slot Usage (%) 88 | . 90 99 97 96 99 85 77 85 90 91 88 92 92 93 94 94 94 93 88 88 87 88 89 79 81 87 Engine 5 | . 14 14 9 8 1 6 9 9 9 12 14 13 13 8 . . . . 3 3 . . . . . . Core 2 | . . . . . 9 2 . . . 2 . . . 8 17 17 17 17 10 3 . 7 4 . . . Reactor 4 | . . . . . . . . . . . . . . . . . . . . 7 15 7 8 13 13 12 Treads 4 | . . . . . . . . . . . . . . . . . . . 10 10 10 10 6 9 13 12 Wheel 6 | . 28 27 21 20 22 13 9 9 9 7 7 6 6 5 5 5 5 5 . . . . 4 . . . Device 18 | . 5 14 12 17 21 10 13 18 11 15 11 13 22 20 20 29 29 31 28 23 23 22 19 20 17 23 Storage 6 | . 14 14 11 11 11 9 9 9 9 7 7 6 6 5 5 5 5 5 5 5 5 5 4 4 4 4 Processor 1 | . . . . . . . . . . . . . . . . 4 5 5 5 5 5 5 3 3 4 4 Hackware 8 | . . . . . . . 1 9 . . 13 25 16 21 17 2 . . . 4 6 9 16 5 11 20 Protection 6 | . . . 8 4 . 16 7 2 24 23 9 6 6 3 6 8 11 8 7 7 5 3 2 5 3 . Energy Gun 1 | . . . 1 . . . . . 5 7 5 . . . . . . . . . . . . 3 4 3 Energy Cannon 2 | . . . . . . . 6 26 20 11 . . . . . . . . . . . . . . 2 3 Ballistic Gun 8 | . 28 26 30 33 32 26 20 . . 1 . . . . 1 . . 5 11 13 . . . 4 1 . Ballistic Cannon 5 | . . . . . . . . . . . 11 13 18 12 10 16 14 10 3 . 13 14 12 2 3 2 Naked Turns . | . . . . . . . . . . . . . . . . . . . . . . . . . . . Heaviest Build 224 | 10 27 31 106 103 101 117 128 124 132 145 138 142 146 171 172 182 182 177 173 174 168 167 215 224 209 194 Greatest Support 230 | 32 32 32 32 28 32 37 37 37 37 28 28 37 40 40 40 40 40 40 172 172 172 172 160 145 225 230 Greatest Overweight (x) 8 | . . . 5 8 3 4 4 3 4 5 4 5 5 5 4 6 6 6 1 1 1 . 3 1 . . Average Overweight (x) 2 | . . . 2 3 3 3 2 2 3 4 3 3 3 3 3 5 5 4 . . . . . 1 . . Largest Inventory Capacity 25 | 8 15 15 25 25 25 25 25 25 25 25 25 25 25 25 25 25 25 25 25 25 25 25 25 25 25 25 Average Capacity 24 | 8 13 15 24 25 25 25 25 25 25 25 25 25 25 25 25 25 25 25 25 25 25 25 25 25 25 25 Most Carried 25 | 6 11 15 25 25 25 25 25 25 25 25 25 25 25 25 25 25 25 24 25 25 25 25 25 25 25 25 Average Carried 23 | 5 8 12 22 24 24 24 21 24 24 24 24 23 24 24 24 24 24 23 23 24 22 24 23 23 24 24 Final Capacity 25 | 8 15 15 25 25 25 25 25 25 25 25 25 25 25 25 25 25 25 25 25 25 25 25 25 25 25 25 Final Carried 25 | 6 11 15 22 25 25 25 25 25 25 25 25 23 25 23 25 25 22 23 25 25 23 25 25 24 25 24 Class Distribution -------------------- 24% | Botlord-Mutant 17% | Tank 7% | Bothacker-Mutant 7% | Mutant 7% | Gunner 7% | Botlord-Gunner 6% | Bothacker-Tank 4% | Botlord-Tank Dominant Class ---------------- Mutant | -10/Materials Mutant | -10/Mines Tank | -9/Materials Gunner | -9/Storage Scavenger-Gunner | -9/Garrison Tank | -8/Materials Tank | -8/Garrison Gunner | -8/Materials Mutant | -8/Garrison Tank | -7/Factory Bothacker-Mutant | -7/Garrison Botlord-Mutant | -6/Factory Botlord-Mutant | -6/Garrison Botlord-Mutant | -5/Factory Bothacker-Mutant | -5/Extension Generator-Tank | -5/Cetus Generator-Tank | -5/Archives Generator-Tank | -5/Hub_04(d) Generator-Gunner | -4/Factory Bothacker-Mutant | -4/Garrison Bothacker-Tank | -4/Factory Bothacker-Tank | -4/Garrison Botlord-Gunner | -3/Research Botlord-Mutant | -3/Garrison Botlord-Mutant | -2/Research Botlord-Mutant | -1/Access Resources | -11 -10 -10 -9 -9 -9 -8 -8 -8 -8 -7 -7 -6 -6 -5 -5 -5 -5 -5 -4 -4 -4 -4 -3 -3 -2 -1 ----------- Run | Scr Mat Min Mat Sto Gar Mat Gar Mat Gar Fac Gar Fac Gar Fac Ext Cet Arc Hub Fac Gar Fac Gar Res Gar Res Acc Matter Collected 23091 | 232 73 126 1799 752 465 761 1263 35 285 90 1152 483 1019 692 1343 123 . 557 943 1367 1236 617 3738 1326 527 2087 Remotely 3754 | . . . . . . 42 376 . . . . 325 266 429 270 . . 417 135 . 622 184 688 . . . Salvage Created 25332 | 119 194 102 1910 1465 577 1319 1313 558 1313 412 712 100 500 227 462 65 223 562 1835 1730 913 766 2431 2157 552 2815 Parts 1170 | 5 14 13 138 84 35 64 63 29 40 15 34 4 27 21 9 . 9 21 96 51 56 31 102 100 16 93 Haulers Intercepted 15 | . 1 . 4 5 . 2 . 1 . . . . . . . . . . 2 . . . . . . . Recyclers Shooed 20 | . . . 3 4 . 2 . . . . . . . . 1 . . 2 1 . . . 5 . . 2 Parts Field Recycled . | . . . . . . . . . . . . . . . . . . . . . . . . . . . Retrieved Matter . | . . . . . . . . . . . . . . . . . . . . . . . . . . . Parts Self-Destructed . | . . . . . . . . . . . . . . . . . . . . . . . . . . . Prevented . | . . . . . . . . . . . . . . . . . . . . . . . . . . . Kills | -11 -10 -10 -9 -9 -9 -8 -8 -8 -8 -7 -7 -6 -6 -5 -5 -5 -5 -5 -4 -4 -4 -4 -3 -3 -2 -1 ------- Run | Scr Mat Min Mat Sto Gar Mat Gar Mat Gar Fac Gar Fac Gar Fac Ext Cet Arc Hub Fac Gar Fac Gar Res Gar Res Acc Combat Hostiles Destroyed 402 | . 5 5 38 19 15 18 23 9 31 6 10 5 12 6 5 1 4 7 22 23 17 12 28 33 10 38 Guns 174 | . 5 1 34 19 11 12 19 . 6 1 2 . . . 1 . . 1 19 23 . . . 8 . 12 Cannons 148 | . . . . . . . . 9 15 1 3 2 6 5 4 1 4 6 3 . 17 12 26 11 7 16 AOE 51 | . . 4 4 . 4 6 4 . 9 4 5 3 6 1 . . . . . . . . . 1 . . Classes Destroyed 21 | 2 4 . 5 3 . 1 . . . 1 1 . . 1 . . . . . 1 1 . . 1 . . Worker 9 | . . . 4 . . . . . . . . . . 1 . . . 1 2 . . . . . . 1 Builder 12 | . 1 . 1 . . . . 1 . . . . . 2 . . . . 4 . . . 1 . 1 1 Tunneler 5 | 1 . 1 1 . . . . . . . . . . . . . . . . . . . 1 . . 1 Hauler 15 | . 1 . 4 5 . 2 . 1 . . . . . . . . . . 2 . . . . . . . Recycler 31 | 1 . . 5 3 . 8 . . . 1 . . . . 1 . . 1 1 . . . 8 . . 2 Carrier 1 | . . . . . . . . . . . . . . . . . . . . 1 . . . . . . Mechanic 1 | . . . . . . . . . . 1 . . . . . . . . . . . . . . . . Operator 5 | . . . . 1 . 2 . . . . . . . . 1 . . . . . . . 1 . . . Drone 3 | . . . . 2 1 . . . . . . . . . . . . . . . . . . . . . Watcher 8 | . . . 3 1 . . . 1 . . . . . . . . . . . . . . 1 1 . 1 Swarmer 70 | . 3 3 16 . 4 8 8 1 4 . 6 . 6 . . . . . 1 3 . . . 4 . 3 Saboteur 1 | . . . . . . . . . . . . . . . . . . . . . . . . 1 . . Grunt 167 | . 2 2 13 9 7 6 7 3 20 4 . 4 4 2 1 . 4 4 8 19 8 9 . 19 1 11 Brawler 10 | . . . 1 . . . 1 1 5 . . . . . . 1 . . . . . . 1 . . . Duelist 10 | . . . . 1 . . 1 . 1 . . 1 . 1 . . . . 1 . . . 1 1 . 2 Protector 2 | . . . 1 . . . . . . . . . . . . . . . . . 1 . . . . . Sentry 62 | . . . 7 9 5 3 5 3 1 2 3 . 2 . 2 . . 1 3 2 3 1 6 1 . 3 Hunter 13 | . . . . . . 1 1 1 . . . . . . . . . . 4 . . . . 2 4 . Programmer 61 | . . . . . . . . . . . . . . 3 1 . . 2 5 . 2 2 20 4 5 17 Behemoth 5 | . . . . . . . . . . . 1 . . . 1 . . . . . . . . 1 . 2 Assembled 3 | . . . . . . . . . . . . . . . . . . . . . 3 . . . . . Thug 1 | . . . . . . . . . . . . . . . 1 . . . . . . . . . . . Best Kill Streak 9 | 2 6 4 6 5 4 4 9 4 7 5 4 4 3 3 2 1 4 8 9 8 4 9 5 6 3 4 Combat Bots Only 9 | . 5 3 6 3 4 4 9 2 7 4 4 4 3 2 1 1 4 7 5 8 4 9 4 6 3 3 Max Kills in Single Turn 5 | 1 1 2 2 2 3 3 2 2 5 3 2 2 1 1 2 1 2 1 4 2 2 2 2 2 1 2 Gunslinging 1 | . . . . 1 1 . 1 . . . . . . . . . . . . 1 . . . . . 1 Exploded 5 | . . 2 2 . 2 3 2 . 5 3 2 2 1 1 . . . . . . . . . 1 . . Melee . | . . . . . . . . . . . . . . . . . . . . . . . . . . . Uniques/NPCs Destroyed . | . . . . . . . . . . . . . . . . . . . . . . . . . . . Combat | -11 -10 -10 -9 -9 -9 -8 -8 -8 -8 -7 -7 -6 -6 -5 -5 -5 -5 -5 -4 -4 -4 -4 -3 -3 -2 -1 -------- Run | Scr Mat Min Mat Sto Gar Mat Gar Mat Gar Fac Gar Fac Gar Fac Ext Cet Arc Hub Fac Gar Fac Gar Res Gar Res Acc Damage Taken 27008 | . 229 115 1206 960 514 510 1741 156 1221 386 1990 397 357 249 182 42 922 355 896 1988 1472 603 2340 2800 1377 4000 Core 2189 | . 74 7 205 46 23 29 142 . 126 22 163 29 45 58 11 . 128 10 11 95 109 48 216 316 23 253 Absorbed by Shields 4551 | . . . . . . . 16 . . . 36 343 376 259 190 43 104 172 762 . . . 683 516 . 1051 Reduced by Siege Mode 1495 | . . . . . . . . . . . . . . . . . . . 49 178 24 20 133 134 130 827 Core Remaining (%) 73 | 100 . 67 . . 31 . . . 46 . 73 . 91 . . . . 79 . . . 77 . 59 98 84 Volleys Fired 1551 | 6 30 6 124 83 28 58 128 21 72 10 56 39 64 45 78 3 9 18 52 80 33 19 135 161 42 151 Largest 3 | 2 2 2 3 3 3 3 3 3 3 3 3 3 3 3 3 3 3 3 3 3 3 3 3 3 3 3 Hottest 318 | 40 40 50 80 66 69 74 74 195 209 209 213 159 159 159 171 171 171 147 143 105 198 198 198 274 239 318 Shots Fired 3336 | 12 60 12 353 249 74 163 320 61 146 24 89 52 105 71 104 9 21 53 151 192 86 58 293 187 77 314 Gun 1897 | 12 60 7 347 249 70 161 317 . 36 6 33 . 7 . 10 . . 17 128 182 . . 10 113 6 126 Cannon 1126 | . . . . . . . . 61 105 13 28 21 85 41 35 9 18 36 23 . 80 58 252 43 66 152 Launcher 54 | . . 5 6 . 4 2 3 . 5 5 5 4 6 . . . . . . . . . . 3 . 6 Special 259 | . . . . . . . . . . . 23 27 7 30 59 . 3 . . 10 6 . 31 28 5 30 Kinetic 2370 | 12 60 7 340 249 70 161 317 . . . 29 21 92 41 45 9 18 53 151 182 80 58 254 29 39 53 Thermal 552 | . . . 7 . . . . 61 141 19 32 . . . . . . . . . . . . 50 21 221 Explosive 45 | . . 5 6 . 4 2 3 . 5 5 5 4 6 . . . . . . . . . . . . . Electromagnetic 110 | . . . . . . . . . . . . . . . . . . . . . . . 8 80 12 10 Robot Hit Streak 48 | 3 8 5 12 16 9 18 39 5 8 12 11 14 20 11 11 2 4 7 11 40 17 12 22 17 23 48 Robot Miss Streak 10 | 2 4 1 10 4 2 5 5 3 3 1 3 3 4 3 3 1 4 4 3 3 4 4 3 3 2 3 Penetration Max 2 | . . . . . . . 1 . . . . . . . 2 . 1 2 1 1 1 1 1 . . 1 Secondary Targets 28 | . 2 . 4 4 3 . 4 . . . 1 . . . . . . . 2 6 . . . . . 2 Max Gunslinging Chain 1 | . 1 . 1 1 1 . 1 . . . 1 . . . . . . . 1 1 . . . . . 1 Capacitor 103 | . . . . . . . . . . . . . . . . . . . . . . . 8 95 . . Shots Hit Robots 2099 | 6 31 6 173 155 44 101 205 32 81 14 67 33 53 49 75 4 9 24 105 147 55 36 188 130 51 225 Core Hits 902 | 4 14 7 83 60 27 54 85 16 52 19 29 17 23 12 12 3 6 16 57 50 25 16 58 54 17 86 Critical Kills 93 | . . . . . . . 2 . 1 . . . 2 . 3 1 3 4 10 16 18 12 13 5 . 3 Critical Parts Destroyed 125 | . 1 . 2 1 . 2 . . . . . . . . 8 2 3 8 17 17 17 21 20 4 . 2 Critical Strikes 292 | . 1 . 2 1 . 2 2 . 3 2 4 1 4 . 12 3 6 13 32 36 43 33 53 12 5 22 Burn 19 | . . . . . . . . . 2 2 2 . . . . . . . . . . . . . 1 12 Meltdown 4 | . . . . . . . . . 1 . . . . . . . . . . . . . . . . 3 Destroy 226 | . 1 . 2 1 . 2 2 . . . . . 2 . 11 3 6 12 28 36 43 33 33 9 . 2 Blast 38 | . . . . . . . . . . . 1 1 2 . 1 . . 1 4 . . . 20 . 4 4 Corrupt 4 | . . . . . . . . . . . . . . . . . . . . . . . . 3 . 1 Puncture 1 | . . . . . . . . . . . 1 . . . . . . . . . . . . . . . Melee Attacks 18 | . . . . . . . . . . . 18 . . . . . . . . . . . . . . . Impact . | . . . . . . . . . . . . . . . . . . . . . . . . . . . Slashing . | . . . . . . . . . . . . . . . . . . . . . . . . . . . Piercing 18 | . . . . . . . . . . . 18 . . . . . . . . . . . . . . . Sneak Attacks . | . . . . . . . . . . . . . . . . . . . . . . . . . . . Combat Hostiles . | . . . . . . . . . . . . . . . . . . . . . . . . . . . Follow-up Attacks . | . . . . . . . . . . . . . . . . . . . . . . . . . . . Damage Inflicted 54002 | 53 238 286 2841 2109 997 2041 2839 890 2910 736 2224 976 1771 942 727 137 344 576 3961 4134 1081 778 6308 3906 1876 8321 Guns 23849 | 53 238 30 2390 2109 584 1625 2667 . 420 114 338 . 18 . 25 . . 121 2946 4134 . . 252 2794 111 2880 Cannons 22738 | . . . . . . . . 890 1613 179 287 420 1287 857 702 137 344 455 444 . 1066 778 5968 764 1765 4782 Explosions 5937 | . . 256 426 . 413 416 172 . 877 443 438 556 466 85 . . . . 477 . . . . 348 . 564 Melee 1161 | . . . . . . . . . . . 1161 . . . . . . . . . . . . . . . Ramming 317 | . . . 25 . . . . . . . . . . . . . . . 94 . 15 . 88 . . 95 Kinetic 32830 | 53 238 30 2347 2109 584 1625 2667 . . . 301 420 1305 857 727 137 344 576 3390 4134 1066 778 6028 568 882 1664 Thermal 11664 | . . . 43 . . . . 890 2033 293 324 . . . . . . . 477 . . . . 1135 590 5879 Explosive 4548 | . . 256 426 . 413 416 172 . 877 443 438 556 466 85 . . . . . . . . . . . . Electromagnetic 3482 | . . . . . . . . . . . . . . . . . . . . . . . 192 2203 404 683 Impact . | . . . . . . . . . . . . . . . . . . . . . . . . . . . Slashing . | . . . . . . . . . . . . . . . . . . . . . . . . . . . Piercing 1161 | . . . . . . . . . . . 1161 . . . . . . . . . . . . . . . Highest Corruption 51 | . . . 3 3 3 . . . . . . 1 1 4 . 1 1 2 10 10 15 16 9 51 3 13 Average Corruption 7 | . . . 3 3 3 . . . . . . 1 1 1 . 1 1 1 8 10 13 15 4 18 2 7 Corruption Purged 34 | . . . . . . . . . . . . . . 4 . . . . . . . . 9 . 3 18 Effects 425 | . . . 18 20 12 . . . . . . 3 5 3 . 1 . 5 41 59 29 22 36 113 3 55 Message Errors 108 | . . . 11 7 2 . . . . . . 2 1 1 . 1 . 2 9 11 6 5 10 24 . 16 Matter Fused 102 | . . . 2 5 2 . . . . . . . . . . . . . 13 13 7 6 3 33 1 17 Heat Flow Errors 40 | . . . 1 1 3 . . . . . . . . . . . . . 2 9 4 . 5 10 . 5 Energy Discharges 52 | . . . 2 4 2 . . . . . . 1 1 . . . . 2 5 3 2 2 6 12 2 8 Parts Rejected 3 | . . . . . . . . . . . . . . . . . . . . 1 1 1 . . . . Data Loss (minor) 57 | . . . 2 3 3 . . . . . . . 2 2 . . . . 4 11 1 4 5 15 . 5 Data Loss (major) 17 | . . . . . . . . . . . . . . . . . . . 1 2 3 2 1 6 . 2 Misfires 14 | . . . . . . . . . . . . . . . . . . . 2 2 2 2 . 6 . . Alerts 5 | . . . . . . . . . . . . . . . . . . . . . 1 . . 3 . 1 Misdirections 1 | . . . . . . . . . . . . . . . . . . . . . 1 . . . . . Weapon Failures 26 | . . . . . . . . . . . . . 1 . . . . 1 5 7 1 . 6 4 . 1 Overload Shots . | . . . . . . . . . . . . . . . . . . . . . . . . . . . Overflow Damage 1145 | . . 4 7 . 33 28 . 65 26 . 103 15 61 6 5 . . . 90 . . . 277 44 65 316 Projectiles 829 | . . . . . . . . 65 2 . . 15 61 6 5 . . . . . . . 258 44 65 308 Explosions 186 | . . 4 7 . 33 28 . . 24 . . . . . . . . . 90 . . . . . . . Melee 130 | . . . . . . . . . . . 103 . . . . . . . . . . . 19 . . 8 Knockbacks 98 | . . . . . . . . . . . 2 1 10 5 3 . 2 5 1 . 2 8 39 1 8 11 Impact . | . . . . . . . . . . . . . . . . . . . . . . . . . . . Kinetic 92 | . . . . . . . . . . . 2 1 10 5 3 . 1 3 1 . 2 8 36 1 8 11 Secondary 6 | . . . . . . . . . . . . . . . . . 1 2 . . . . 3 . . . Self-Inflicted Damage 309 | . . 51 33 . 39 . 18 . 7 . 88 . 54 . . . . . . . . . . 19 . . Shots 14 | . . 2 1 . 2 . 1 . 1 . 3 . 1 . . . . . . . . . . 3 . . Rammed 18 | . . . 1 . . . . . . . . . . . . . . . 7 . 2 . 4 . . 4 Targets Rammed 22 | . . . 1 . . . . . . . . . . . . . . . 7 . 2 . 5 . . 7 Kicked . | . . . . . . . . . . . . . . . . . . . . . . . . . . . Crushed 4 | . . . . . . . . . . . . . . . . . . . . . . . 1 . . 3 Highest Temperature 525 | . 12 25 188 201 216 87 373 224 363 132 524 275 187 109 140 230 330 330 246 252 293 186 454 525 48 237 Average Temperature 73 | . 6 11 39 27 28 26 82 48 101 57 102 65 54 30 25 115 184 105 75 61 117 69 115 108 11 59 Received Heat Transfer 5675 | . 48 27 306 438 144 162 579 72 693 126 375 110 113 70 24 6 . 149 92 606 472 144 171 494 . 254 Effects 19 | . . . . . . . 1 . 1 . 6 1 . . . . . 1 . . . . 5 4 . . Shutdowns 8 | . . . . . . . . . 1 . 3 . . . . . . 1 . . . . 1 2 . . Energy Bleed 2 | . . . . . . . . . . . 1 . . . . . . . . . . . 1 . . . Interference 5 | . . . . . . . 1 . . . . 1 . . . . . . . . . . 2 1 . . Short Circuit 2 | . . . . . . . . . . . 1 . . . . . . . . . . . 1 . . . Damage (minor) 1 | . . . . . . . . . . . 1 . . . . . . . . . . . . . . . Damage (core) 1 | . . . . . . . . . . . . . . . . . . . . . . . . 1 . . Siege Activations 82 | . . . . . . . . . . . . . . . . . . . 10 14 6 3 16 10 5 18 Total Turns 1022 | . . . . . . . . . . . . . . . . . . . 94 168 80 42 176 176 71 215 Longest Duration 48 | . . . . . . . . . . . . . . . . . . . 24 48 34 25 28 45 21 33 Robots Corrupted 22 | . . . . . . . . . . . . . . . . . . . . . . . 2 13 3 4 Combat Hostiles 22 | . . . . . . . . . . . . . . . . . . . . . . . 2 13 3 4 Parts Fried 43 | . . . . . . . . . . . . . . . . . . . . . . . 3 27 6 7 Impact Corruptions 4 | . . . . . . . . . . . . . . 1 . . . . . . . . 2 . . 1 Robots Melted 7 | . . . . . . . . . 1 . . . . . . . . . . . . . . . . 6 Combat Hostiles 7 | . . . . . . . . . 1 . . . . . . . . . . . . . . . . 6 Parts Melted 54 | . . . . . . . . 2 7 4 2 . . . . . . . . 1 . . . 1 1 36 Heat Transferred 14648 | . . . 100 . . . . 1221 3219 629 740 . . . . . . . 350 . . . . 1068 671 6650 Parts Sabotaged 2 | . . . . . . . . . . . . . 2 . . . . . . . . . . . . . Parts Stolen . | . . . . . . . . . . . . . . . . . . . . . . . . . . . Parts Stripped . | . . . . . . . . . . . . . . . . . . . . . . . . . . . Power Chain Reactions . | . . . . . . . . . . . . . . . . . . . . . . . . . . . Missiles Intercepted . | . . . . . . . . . . . . . . . . . . . . . . . . . . . Alert | -11 -10 -10 -9 -9 -9 -8 -8 -8 -8 -7 -7 -6 -6 -5 -5 -5 -5 -5 -4 -4 -4 -4 -3 -3 -2 -1 ------- Run | Scr Mat Min Mat Sto Gar Mat Gar Mat Gar Fac Gar Fac Gar Fac Ext Cet Arc Hub Fac Gar Fac Gar Res Gar Res Acc Peak Influence 1312 | 10 158 156 564 533 871 735 1117 921 1312 783 799 762 1058 793 703 502 340 260 721 991 549 420 369 855 480 331 Initial 688 | . 6 61 7 237 261 424 395 544 468 688 473 396 533 555 252 376 200 87 127 497 520 114 236 216 480 22 Average 508 | 7 80 88 307 274 648 536 956 696 967 726 633 462 859 541 425 451 253 150 250 814 441 313 185 664 93 99 Maximum Alert Level 4 | . . 1 2 2 3 3 4 3 4 3 3 3 3 3 3 2 1 1 3 3 2 2 1 3 2 1 Low Security (%) 23 | 100 100 99 32 36 . . . . . . . . . . 2 . . 69 47 . 5 16 47 . 85 86 Level 1 17 | . . . 30 38 12 6 2 . . . . 38 . 4 55 31 100 30 45 . 20 50 52 8 . 13 Level 2 29 | . . . 36 24 49 80 14 40 17 35 61 50 24 94 36 68 . . . 14 74 32 . 40 14 . Level 3 26 | . . . . . 37 12 55 59 57 64 38 10 75 . 5 . . . 6 85 . . . 51 . . Level 4 3 | . . . . . . . 26 . 24 . . . . . . . . . . . . . . . . . Level 5 . | . . . . . . . . . . . . . . . . . . . . . . . . . . . High Security . | . . . . . . . . . . . . . . . . . . . . . . . . . . . Max Security . | . . . . . . . . . . . . . . . . . . . . . . . . . . . Squads Dispatched 73 | . 1 . 4 3 . 2 . . . 1 . 9 . 6 4 . . 2 6 . 7 . 13 . 5 10 Investigation 9 | . 1 . 1 . . . . . . . . 1 . 1 . . . . 1 . 1 . . . . 3 Extermination 21 | . . . . . . . . . . . . . . 1 . . . 1 3 . 1 . 7 . 2 6 Reinforcement 25 | . . . 2 1 . 1 . . . . . 3 . 3 3 . . 1 2 . 1 . 4 . 3 1 Assault 9 | . . . 1 . . . . . . 1 . 4 . 1 1 . . . . . 1 . . . . . Garrison 9 | . . . . 2 . 1 . . . . . 1 . . . . . . . . 3 . 2 . . . Intercept . | . . . . . . . . . . . . . . . . . . . . . . . . . . . Construction Impeded 5 | . . . 1 . . . . . . . . 1 . . . . . . 1 . 1 . . . 1 . Haulers Reinforced 5 | . . . . . . . . . . . . 1 . 2 . . . 1 1 . . . . . . . Cargo Convoy Interrupts 1 | . . . . . . . . . . . . . . . . . . . . . . . 1 . . . Alert ID Control Effect 13 | . . . . . . . . . . . . . . . . . . . . 1 . . 8 . . 4 Stealth | -11 -10 -10 -9 -9 -9 -8 -8 -8 -8 -7 -7 -6 -6 -5 -5 -5 -5 -5 -4 -4 -4 -4 -3 -3 -2 -1 --------- Run | Scr Mat Min Mat Sto Gar Mat Gar Mat Gar Fac Gar Fac Gar Fac Ext Cet Arc Hub Fac Gar Fac Gar Res Gar Res Acc Distress Signals 32 | . 1 1 4 3 . 2 . 4 . . 4 . . 3 3 1 . 1 1 . . . 3 1 . . Communications Jammed 38 | . . . . . . . . . . . . . . . . . . . . . . . . . . 38 Distress Signals 37 | . . . . . . . . . . . . . . . . . . . . . . . . . . 37 Times Spotted 735 | . 8 6 54 31 24 29 26 17 34 8 41 42 29 26 29 8 19 8 30 32 26 16 66 43 12 71 Peak Tracking Total 12 | . 6 3 6 4 7 4 6 5 6 4 8 9 5 6 5 5 12 6 3 7 6 6 8 6 3 5 Tactical Retreats 40 | . . 1 5 3 . 2 2 . 3 . 1 . 1 1 1 . . . . 2 . 3 3 5 1 6 Traps | -11 -10 -10 -9 -9 -9 -8 -8 -8 -8 -7 -7 -6 -6 -5 -5 -5 -5 -5 -4 -4 -4 -4 -3 -3 -2 -1 ------- Run | Scr Mat Min Mat Sto Gar Mat Gar Mat Gar Fac Gar Fac Gar Fac Ext Cet Arc Hub Fac Gar Fac Gar Res Gar Res Acc Traps Triggered 50 | . 1 . 4 . 3 . 7 . 6 . 2 1 6 2 1 . . . 4 1 1 . 1 9 . 1 Indirectly . | . . . . . . . . . . . . . . . . . . . . . . . . . . . Trap Hack Attempts . | . . . . . . . . . . . . . . . . . . . . . . . . . . . Triggered . | . . . . . . . . . . . . . . . . . . . . . . . . . . . Disarmed . | . . . . . . . . . . . . . . . . . . . . . . . . . . . Reprogrammed . | . . . . . . . . . . . . . . . . . . . . . . . . . . . Reused . | . . . . . . . . . . . . . . . . . . . . . . . . . . . Traps Extracted . | . . . . . . . . . . . . . . . . . . . . . . . . . . . Installed . | . . . . . . . . . . . . . . . . . . . . . . . . . . . Triggered . | . . . . . . . . . . . . . . . . . . . . . . . . . . . Machines | -11 -10 -10 -9 -9 -9 -8 -8 -8 -8 -7 -7 -6 -6 -5 -5 -5 -5 -5 -4 -4 -4 -4 -3 -3 -2 -1 ---------- Run | Scr Mat Min Mat Sto Gar Mat Gar Mat Gar Fac Gar Fac Gar Fac Ext Cet Arc Hub Fac Gar Fac Gar Res Gar Res Acc Machines Disabled 80 | . . 1 3 . 1 2 4 3 5 . 5 4 4 7 . 5 1 . 21 3 . 1 2 4 1 3 Max in Single Turn 18 | . . 1 2 . 1 1 1 2 1 . 1 1 1 2 . 1 . . 18 1 . 1 1 1 1 1 Garrison Access 2 | . . . . . . . . . . . . . . 1 . . . . . . . . . . . 1 Garrison Relay 25 | . . . . . 1 . 4 . 4 . 4 . 4 . . . . . . 3 . 1 . 4 . . Energy Cycler 1 | . . . . . . . . . . . . . . . . . . . . . . . . . . 1 Machines Sabotaged . | . . . . . . . . . . . . . . . . . . . . . . . . . . . Garrisons Compromised . | . . . . . . . . . . . . . . . . . . . . . . . . . . . Overloaded Fab Kills . | . . . . . . . . . . . . . . . . . . . . . . . . . . . Fab Network Shutdowns . | . . . . . . . . . . . . . . . . . . . . . . . . . . . Hacking | -11 -10 -10 -9 -9 -9 -8 -8 -8 -8 -7 -7 -6 -6 -5 -5 -5 -5 -5 -4 -4 -4 -4 -3 -3 -2 -1 --------- Run | Scr Mat Min Mat Sto Gar Mat Gar Mat Gar Fac Gar Fac Gar Fac Ext Cet Arc Hub Fac Gar Fac Gar Res Gar Res Acc Machines Accessed 74 | . . 1 9 6 . 3 . 5 . 3 . 6 . 8 9 . . 2 6 . 4 . 2 . 2 8 Terminals 52 | . . . 6 5 . 2 . 4 . . . 3 . 5 9 . . 2 4 . 3 . 1 . 2 6 Fabricators 3 | . . . . . . . . . . 1 . . . 1 . . . . . . . . . . . 1 Repair Stations 3 | . . . 2 . . . . . . 1 . . . . . . . . . . . . . . . . Recycling Units 1 | . . . . . . . . . . . . 1 . . . . . . . . . . . . . . Scanalyzers 4 | . . . 1 . . . . . . . . 1 . 1 . . . . 1 . . . . . . . Garrison Access 10 | . . . . 1 . 1 . 1 . 1 . 1 . 1 . . . . 1 . 1 . 1 . . 1 Total Hacks 193 | . . 1 31 21 . 10 . 13 . 6 . 13 . 18 32 . . 4 15 . 11 . 3 . 2 13 Successful 85 | . . 1 19 11 . 5 . 6 . 3 . 7 . 9 10 . . 1 5 . 5 . 1 . . 2 Failed 108 | . . . 12 10 . 5 . 7 . 3 . 6 . 9 22 . . 3 10 . 6 . 2 . 2 11 Catastrophic 23 | . . . 2 3 . 1 . . . 1 . 1 . 1 3 . . 1 3 . 2 . . . . 5 Database Lockouts . | . . . . . . . . . . . . . . . . . . . . . . . . . . . Manual 95 | . . . 16 11 . 6 . 12 . 3 . 9 . 6 11 . . 4 9 . 5 . . . . 3 Terminals 144 | . . . 19 20 . 9 . 12 . . . 7 . 8 32 . . 4 9 . 10 . 2 . 2 10 Fabricators 8 | . . . . . . . . . . 3 . . . 3 . . . . . . . . . . . 2 Repair Stations 8 | . . . 6 . . . . . . 2 . . . . . . . . . . . . . . . . Recycling Units 3 | . . . . . . . . . . . . 3 . . . . . . . . . . . . . . Scanalyzers 16 | . . . 6 . . . . . . . . 2 . 4 . . . . 4 . . . . . . . Garrison Access 13 | . . . . 1 . 1 . 1 . 1 . 1 . 3 . . . . 2 . 1 . 1 . . 1 Terminal Hacks 32 | . . 1 6 8 . 2 . 2 . . . . . 2 8 . . . . . 2 . . . . 1 Record 1 | . . . . . . . . . . . . . . . 1 . . . . . . . . . . . Prototype ID Bank 3 | . . . 2 1 . . . . . . . . . . . . . . . . . . . . . . Open Door 8 | . . 1 . 1 . . . . . . . . . 1 5 . . . . . . . . . . . Branch Access Points 1 | . . . 1 . . . . . . . . . . . . . . . . . . . . . . . Terminal Index 4 | . . . . 1 . . . 1 . . . . . . 1 . . . . . . . . . . 1 Garrison Index 1 | . . . . . . . . 1 . . . . . . . . . . . . . . . . . . Alert Level 1 | . . . . 1 . . . . . . . . . . . . . . . . . . . . . . Unreport Threat 7 | . . . 1 2 . 1 . . . . . . . 1 . . . . . . 2 . . . . . Locate Traps 4 | . . . 1 1 . 1 . . . . . . . . 1 . . . . . . . . . . . Zone Layout 2 | . . . 1 1 . . . . . . . . . . . . . . . . . . . . . . Fabricator Hacks 2 | . . . . . . . . . . . . . . 2 . . . . . . . . . . . . Load Schematic 1 | . . . . . . . . . . . . . . 1 . . . . . . . . . . . . Build 1 | . . . . . . . . . . . . . . 1 . . . . . . . . . . . . Repair Station Hacks 7 | . . . 5 . . . . . . 2 . . . . . . . . . . . . . . . . Scan Component 4 | . . . 3 . . . . . . 1 . . . . . . . . . . . . . . . . Repair 3 | . . . 2 . . . . . . 1 . . . . . . . . . . . . . . . . Recycling Unit Hacks . | . . . . . . . . . . . . . . . . . . . . . . . . . . . Scanalyzer 10 | . . . 4 . . . . . . . . 2 . 1 . . . . 3 . . . . . . . Insert Component 5 | . . . 2 . . . . . . . . 1 . 1 . . . . 1 . . . . . . . Analyze 5 | . . . 2 . . . . . . . . 1 . . . . . . 2 . . . . . . . Garrison Access Hacks 11 | . . . . 1 . 1 . 1 . 1 . 1 . 2 . . . . 1 . 1 . 1 . . 1 Unlock Access 9 | . . . . 1 . 1 . 1 . 1 . 1 . 1 . . . . 1 . 1 . 1 . . . Seal Access 1 | . . . . . . . . . . . . . . . . . . . . . . . . . . 1 Coupler Status 1 | . . . . . . . . . . . . . . 1 . . . . . . . . . . . . Unauthorized Hacks 23 | . . . 4 2 . 2 . 3 . . . 4 . 2 2 . . 1 1 . 2 . . . . . Terminals 19 | . . . 3 2 . 2 . 3 . . . 2 . 1 2 . . 1 1 . 2 . . . . . Track 1 | . . . 1 . . . . . . . . . . . . . . . . . . . . . . . Botnet 18 | . . . 2 2 . 2 . 3 . . . 2 . 1 2 . . 1 1 . 2 . . . . . Fabricators 1 | . . . . . . . . . . . . . . 1 . . . . . . . . . . . . Haulers 1 | . . . . . . . . . . . . . . 1 . . . . . . . . . . . . Repair Stations . | . . . . . . . . . . . . . . . . . . . . . . . . . . . Recycling Units 2 | . . . . . . . . . . . . 2 . . . . . . . . . . . . . . Monitor 1 | . . . . . . . . . . . . 1 . . . . . . . . . . . . . . Reject 1 | . . . . . . . . . . . . 1 . . . . . . . . . . . . . . Scanalyzers 1 | . . . 1 . . . . . . . . . . . . . . . . . . . . . . . Extract 1 | . . . 1 . . . . . . . . . . . . . . . . . . . . . . . Garrison Access . | . . . . . . . . . . . . . . . . . . . . . . . . . . . Data Cores Recovered . | . . . . . . . . . . . . . . . . . . . . . . . . . . . Used . | . . . . . . . . . . . . . . . . . . . . . . . . . . . Hacking Detections 62 | . . . 9 5 . 3 . 4 . 2 . 4 . 6 7 . . 2 6 . 4 . 2 . 2 6 Full Trace Events 6 | . . . 1 . . . . . . . . 1 . 1 . . . . 1 . . . . . . 2 Feedback Events . | . . . . . . . . . . . . . . . . . . . . . . . . . . . Feedback Blocked . | . . . . . . . . . . . . . . . . . . . . . . . . . . . Robot Schematics Acquired . | . . . . . . . . . . . . . . . . . . . . . . . . . . . Robots Built . | . . . . . . . . . . . . . . . . . . . . . . . . . . . Matter . | . . . . . . . . . . . . . . . . . . . . . . . . . . . Time . | . . . . . . . . . . . . . . . . . . . . . . . . . . . Total Robot Build Rating . | . . . . . . . . . . . . . . . . . . . . . . . . . . . Part Schematics Acquired 4 | . . . 3 . . . . . . . . 1 . . . . . . . . . . . . . . Parts Built 2 | . . . . . . . . . . . . . . 2 . . . . . . . . . . . . Matter 168 | . . . . . . . . . . . . . . 168 . . . . . . . . . . . . Time 84 | . . . . . . . . . . . . . . 84 . . . . . . . . . . . . Total Part Build Rating 8 | . . . . . . . . . . . . . . 8 . . . . . . . . . . . . Parts Repaired 3 | . . . 2 . . . . . . 1 . . . . . . . . . . . . . . . . Time 98 | . . . 76 . . . . . . 22 . . . . . . . . . . . . . . . . Parts Recycled . | . . . . . . . . . . . . . . . . . . . . . . . . . . . Recycled Matter . | . . . . . . . . . . . . . . . . . . . . . . . . . . . Retrieved Matter . | . . . . . . . . . . . . . . . . . . . . . . . . . . . Retrieved Components . | . . . . . . . . . . . . . . . . . . . . . . . . . . . Parts Scanalyzed 5 | . . . 2 . . . . . . . . 1 . 1 . . . . 1 . . . . . . . Part Schematics Acquired 3 | . . . 2 . . . . . . . . 1 . . . . . . . . . . . . . . Parts Damaged . | . . . . . . . . . . . . . . . . . . . . . . . . . . . Bothacking | -11 -10 -10 -9 -9 -9 -8 -8 -8 -8 -7 -7 -6 -6 -5 -5 -5 -5 -5 -4 -4 -4 -4 -3 -3 -2 -1 ------------ Run | Scr Mat Min Mat Sto Gar Mat Gar Mat Gar Fac Gar Fac Gar Fac Ext Cet Arc Hub Fac Gar Fac Gar Res Gar Res Acc Used RIF Installer 8 | . . . . . 1 . 1 . 1 . 1 . 1 . . . . . . 1 . 1 . 1 . . Command Fork 2 | . . . . . . . 1 . . . . . 1 . . . . . . . . . . . . . Threat Obfuscator 2 | . . . . . . . . . 1 . . . . . . . . . . . . . . 1 . . Robot Detection 1 | . . . . . . . . . . . . . . . . . . . . . . 1 . . . . Watcher Feeds 1 | . . . . . . . . . . . 1 . . . . . . . . . . . . . . . Alert ID Control 1 | . . . . . . . . . . . . . . . . . . . . 1 . . . . . . Robots Hacked 108 | . . . . . . . . . . . 16 13 6 17 11 . 3 . . 4 3 . 11 3 1 20 Non-combat 27 | . . . . . . . . . . . . 3 . 8 1 . . . . . . . 4 . 1 10 Combat 81 | . . . . . . . . . . . 16 10 6 9 10 . 3 . . 4 3 . 7 3 . 10 Robot Hacks Applied 123 | . . . . . . . . . . . 16 16 6 19 11 . 3 . . 5 4 . 14 3 5 21 parse_system 7 | . . . . . . . . . . . . . . . 4 . 3 . . . . . . . . . generate_echo 1 | . . . . . . . . . . . . . . . . . . . . . . . . . 1 . ignore_repairs 3 | . . . . . . . . . . . . 1 . . . . . . . . . . . . . 2 map_walls 5 | . . . . . . . . . . . . 1 . 2 . . . . . . . . 1 . . 1 drop_inventory 13 | . . . . . . . . . . . . 1 . 5 . . . . . . . . 1 . . 6 recall_reinforcements 1 | . . . . . . . . . . . . . . 1 . . . . . . . . . . . . ignore_parts 1 | . . . . . . . . . . . . . . . . . . . . . . . . . . 1 purge_threat 6 | . . . . . . . . . . . . 1 . . . . . . . . . . 2 . 3 . locate_traps 1 | . . . . . . . . . . . . 1 . . . . . . . . . . . . . . disarm_traps 3 | . . . . . . . . . . . . . . 1 . . . . . . . . 1 . 1 . block_reporting 1 | . . . . . . . . . . . . . . . . . . . . . . . 1 . . . scatter_targeting 1 | . . . . . . . . . . . . . . 1 . . . . . . . . . . . . link_complan 1 | . . . . . . . . . . . . . 1 . . . . . . . . . . . . . spike_heat 4 | . . . . . . . . . . . . . . 2 . . . . . . . . 2 . . . disable_weapons 2 | . . . . . . . . . . . . . . . 1 . . . . . . . . 1 . . reboot_system 2 | . . . . . . . . . . . . 1 . 1 . . . . . . . . . . . . overwrite_iff 25 | . . . . . . . . . . . . 5 5 2 . . . . . 2 1 . . 2 . 8 streamctrl_high 7 | . . . . . . . . . . . 6 . . . 1 . . . . . . . . . . . formatsys_low 1 | . . . . . . . . . . . . 1 . . . . . . . . . . . . . . formatsys_high 38 | . . . . . . . . . . . 10 4 . 4 5 . . . . 3 3 . 6 . . 3 Relay Couplers Released 106 | . . . . . 4 . 15 . 18 . 15 . 19 1 . . . . . 12 . 5 3 14 . . Machine Destruction 103 | . . . . . 4 . 15 . 18 . 15 . 19 1 . . . . . 12 . 5 . 14 . . Programmers 3 | . . . . . . . . . . . . . . . . . . . . . . . 3 . . . Attached 45 | . . . . . . . 2 . . . 10 6 1 5 3 . . . . 2 2 3 4 2 4 1 Robots Rewired 38 | . . . . . . . . . . . 6 2 . . 22 . . . . . . . . 8 . . Allies Hacked 4 | . . . . . . . . . . . . . . . 1 . . . . . . . . . . 3 Hacks Repelled . | . . . . . . . . . . . . . . . . . . . . . . . . . . . Allies | -11 -10 -10 -9 -9 -9 -8 -8 -8 -8 -7 -7 -6 -6 -5 -5 -5 -5 -5 -4 -4 -4 -4 -3 -3 -2 -1 -------- Run | Scr Mat Min Mat Sto Gar Mat Gar Mat Gar Fac Gar Fac Gar Fac Ext Cet Arc Hub Fac Gar Fac Gar Res Gar Res Acc Total Allies 142 | . . . . 10 . . . . . . 23 16 6 6 36 . . . . 6 5 . 9 10 . 15 Largest Group 19 | . . . . 10 8 . . . . . 7 7 5 4 19 18 3 . . 2 3 . 3 5 5 3 Highest-Rated Group 769 | . . . . 88 72 . . . . . 150 204 131 107 769 688 85 . . 98 147 . 161 150 70 202 Highest-Rated Ally 156 | . . . . 16 16 . . . . . 32 41 41 49 156 156 31 . . 49 58 . 58 50 14 69 Total Orders 16 | . . . . . . 6 . . . . 2 . . 5 . 2 . . . . . . 1 . . . STAY 2 | . . . . . . . . . . . . . . . . 1 . . . . . . 1 . . . ROAM 1 | . . . . . . . . . . . 1 . . . . . . . . . . . . . . . FOLLOW 2 | . . . . . . . . . . . 1 . . . . 1 . . . . . . . . . . EXPLORE 11 | . . . . . . 6 . . . . . . . 5 . . . . . . . . . . . . Ally Attacks 847 | . . . . 24 43 . . . . . 105 82 33 64 151 99 41 . . 25 25 . 62 24 6 63 Total Damage 20800 | . . . . 202 300 . . . . . 1970 3712 619 1539 4141 2498 615 . . 223 898 . 1555 784 . 1744 Kills 153 | . . . . 5 10 . . . . . 14 35 12 14 27 14 2 . . 2 3 . 8 2 . 5 Allies Corrupted 8 | . . . . . . . . . . . . 1 . . 2 . . . . . . . 2 . . 3 Allies Melted 1 | . . . . . . . . . . . . . . . . . . . . . . . . 1 . . Intel | -11 -10 -10 -9 -9 -9 -8 -8 -8 -8 -7 -7 -6 -6 -5 -5 -5 -5 -5 -4 -4 -4 -4 -3 -3 -2 -1 ------- Run | Scr Mat Min Mat Sto Gar Mat Gar Mat Gar Fac Gar Fac Gar Fac Ext Cet Arc Hub Fac Gar Fac Gar Res Gar Res Acc Robot Analysis Total . | . . . . . . . . . . . . . . . . . . . . . . . . . . . Derelict Logs Recovered . | . . . . . . . . . . . . . . . . . . . . . . . . . . . Drone Launches 52 | . . . . 23 11 3 . . . . . . . 15 . . . . . . . . . . . . Drone Recoveries 32 | . . . . 13 7 3 . . . . . . . 9 . . . . . . . . . . . . Exploration | -11 -10 -10 -9 -9 -9 -8 -8 -8 -8 -7 -7 -6 -6 -5 -5 -5 -5 -5 -4 -4 -4 -4 -3 -3 -2 -1 ------------- Run | Scr Mat Min Mat Sto Gar Mat Gar Mat Gar Fac Gar Fac Gar Fac Ext Cet Arc Hub Fac Gar Fac Gar Res Gar Res Acc Turns Passed 29518 | 43 215 435 1791 1001 821 933 2553 487 1765 474 1503 713 1353 1357 992 293 106 266 1130 1518 664 473 2377 2549 875 2831 Spaces Moved 13904 | 23 128 404 847 435 457 439 1446 258 869 223 728 374 709 690 487 142 44 119 531 672 268 235 952 827 397 1200 Core . | . . . . . . . . . . . . . . . . . . . . . . . . . . . Treads 4774 | . . . . . . . . . . . . . . . . . . . 531 672 268 235 644 827 397 1200 Legs . | . . . . . . . . . . . . . . . . . . . . . . . . . . . Wheels 9130 | 23 128 404 847 435 457 439 1446 258 869 223 728 374 709 690 487 142 44 119 . . . . 308 . . . Hover . | . . . . . . . . . . . . . . . . . . . . . . . . . . . Flight . | . . . . . . . . . . . . . . . . . . . . . . . . . . . Fastest Speed 100 | 100 100 100 100 140 135 135 130 130 145 160 145 145 145 145 145 160 160 160 160 160 160 160 110 252 166 166 Average Speed 160 | 100 100 100 138 144 141 146 142 134 159 164 159 150 151 157 155 189 185 160 162 168 171 160 171 252 166 171 Slowest Speed 260 | 100 100 100 175 210 145 160 160 145 160 175 160 175 175 175 160 190 190 190 260 260 260 160 260 260 166 173 Overloaded Moves . | . . . . . . . . . . . . . . . . . . . . . . . . . . . Propulsion Burnouts . | . . . . . . . . . . . . . . . . . . . . . . . . . . . Robots Hopped . | . . . . . . . . . . . . . . . . . . . . . . . . . . . Cave-ins Triggered . | . . . . . . . . . . . . . . . . . . . . . . . . . . . Exploration Rate (%) 45 | 4 31 61 65 63 66 63 78 30 60 5 73 15 97 24 68 57 76 15 16 73 9 38 27 67 8 41 Regions Visited 26 Branch Regions 6 Pre-discovered Areas 1 | . . 1 . . . . . . . . . . . . . . . . . . . . . . . . Known Exits Taken 9 | . . . 1 1 . 1 . 1 . 1 . 1 . . . . . . 1 . 1 . 1 . . . Unknown Exits Taken 9 | 1 1 1 . . . . . . . . . . . 1 1 1 1 1 . . . . . . 1 . Scrap Searched 1 | . . 1 . . . . . . . . . . . . . . . . . . . . . . . . Spaces Dug 95 | . . 8 13 . 8 . 9 . 4 . . . 5 . 1 . . . 1 3 . . 15 2 6 20 Terrain Destroyed 711 | . . 33 51 . 20 17 29 18 26 30 51 29 67 48 10 . 7 25 106 8 3 3 60 6 18 46 Melee . | . . . . . . . . . . . . . . . . . . . . . . . . . . . Projectile 331 | . . . . . . . 15 18 . . 1 4 22 10 10 . 7 23 88 7 3 3 60 6 18 36 AOE 377 | . . 33 51 . 20 17 14 . 26 30 50 25 45 38 . . . . 18 . . . . . . 10 Terrain Rammed . | . . . . . . . . . . . . . . . . . . . . . . . . . . . Walls Destroyed . | . . . . . . . . . . . . . . . . . . . . . . . . . . . Machines Disabled . | . . . . . . . . . . . . . . . . . . . . . . . . . . . Actions | -11 -10 -10 -9 -9 -9 -8 -8 -8 -8 -7 -7 -6 -6 -5 -5 -5 -5 -5 -4 -4 -4 -4 -3 -3 -2 -1 --------- Run | Scr Mat Min Mat Sto Gar Mat Gar Mat Gar Fac Gar Fac Gar Fac Ext Cet Arc Hub Fac Gar Fac Gar Res Gar Res Acc Total 19061 | 34 167 422 1213 634 580 613 1693 355 1130 310 981 488 903 920 674 163 58 164 717 958 425 299 1536 1247 571 1806 Wait 1756 | . 1 . 117 70 20 47 17 48 102 57 24 33 15 106 24 1 . 20 79 127 89 18 256 124 76 285 Move 13882 | 22 127 403 846 435 456 439 1445 258 868 223 727 373 708 689 486 141 43 118 530 671 268 234 951 826 396 1199 Hop . | . . . . . . . . . . . . . . . . . . . . . . . . . . . Pick Up 409 | 2 6 5 42 15 22 17 26 7 13 3 31 8 23 18 11 5 . 3 17 20 5 6 37 25 12 30 Fast Attach 157 | . 1 1 17 3 . 7 . 7 . 2 14 1 2 4 1 1 . . 5 11 3 6 29 24 8 10 Attach 159 | 2 1 2 11 5 8 4 16 . 2 3 15 5 1 9 3 2 3 2 4 8 8 2 18 15 4 6 Detach 18 | . . . 1 1 . . 2 1 . . 2 2 . 2 . 1 . . . 1 2 . 2 . . 1 Swap 385 | . . 4 20 2 8 12 3 . 19 7 20 20 21 25 18 3 2 3 10 14 10 7 43 22 18 74 Drop 438 | 2 1 1 34 12 19 29 16 13 14 5 28 4 21 21 8 6 . . 13 25 5 7 60 36 15 43 Fire 1551 | 6 30 6 124 83 28 58 128 21 72 10 56 39 64 45 78 3 9 18 52 80 33 19 135 161 42 151 Melee 18 | . . . . . . . . . . . 18 . . . . . . . . . . . . . . . Ram 1 | . . . 1 . . . . . . . . . . . . . . . . . . . . . . . Kick . | . . . . . . . . . . . . . . . . . . . . . . . . . . . Crush 21 | . . . . . . . . . . . . . . . . . . . 7 . 2 . 5 . . 7 Escape Stasis 181 | . . . . . 16 . 39 . 40 . 16 . 48 . 8 . . . . . . . . 14 . . Rewire 74 | . . . . 1 . . 1 . . . 30 3 . . 37 . 1 . . 1 . . . . . . Trap . | . . . . . . . . . . . . . . . . . . . . . . . . . . . Miscellaneous 11 | . . . . 7 3 . . . . . . . . 1 . . . . . . . . . . . . Route ------- -11/Scrapyard -10/Materials -10/Mines (discovered 2 exits: *Mat x2) -9/Materials (discovered 4 exits: *Mat x2 / Min / *Sto) -9/Storage (discovered 2 exits: [*Rec] / Gar) -9/Garrison (discovered 2 exits: *Mat x2) -8/Materials (discovered 2 exits: *Fac / Gar) -8/Garrison (discovered 3 exits: *Mat x3) -8/Materials -8/Garrison (discovered 3 exits: *Fac x3) -7/Factory -7/Garrison (discovered 3 exits: *Fac x3) -6/Factory -6/Garrison (discovered 3 exits: *Fac x3) -5/Factory (discovered 2 exits: [*Upp] / *Ext) -5/Extension (discovered 2 exits: *Fac / *Cet) -5/Cetus -5/Archives -5/Hub_04(d) -4/Factory -4/Garrison (discovered 3 exits: *Fac x3) -4/Factory -4/Garrison -3/Research (discovered 2 exits: *Res / Gar) -3/Garrison (discovered 3 exits: *Res x3) -2/Research -1/Access To Epsilon Eridani History --------- Turn | Location | Event 20 | -11/Scrapyard | Discovered new exit (range 3) 44 | -11/Scrapyard | Entered Materials 254 | -10/Materials | Discovered new exit (range 6) 259 | -10/Materials | Entered Mines 260 | -10/Mines | Learned location of Storage (-9) 303 | -10/Mines | Discovered new exit (range 5) 312 | -10/Mines | Build established: Mutant 372 | -10/Mines | Found the Drone Emporium 380 | -10/Mines | Found Prototype Device 609 | -10/Mines | Assembled infested the area 688 | -10/Mines | Discovered new exit (range 6) 694 | -10/Mines | Entered Materials 694 | -9/Materials | Evolved 2 slots: Utility x1, Weapon x1 696 | -9/Materials | Identified Bomb Drone Bay 760 | -9/Materials | Discovered new exit (range 11) 993 | -9/Materials | Build established: Gunner 1130 | -9/Materials | Lost 3 parts (2n1w) 1363 | -9/Materials | Discovered new exit (range 16) 1373 | -9/Materials | Build established: Tank 1520 | -9/Materials | Repaired Broken Hvy. Assault Rifle 1553 | -9/Materials | Repaired Med. Armor Plating 2017 | -9/Materials | Identified exit to Mines 2017 | -9/Materials | Identified exit to Storage 2091 | -9/Materials | Discovered new exit (range 14) 2294 | -9/Materials | First assault squad dispatched 2430 | -9/Materials | Core integrity fell below 50% 2469 | -9/Materials | Lost 3 parts (1u2w) 2485 | -9/Materials | Entered Storage 2929 | -9/Storage | Used back door to open Recycling access 2929 | -9/Storage | Discovered new exit (range 5) 3146 | -9/Storage | Build established: Gunner 3320 | -9/Storage | Garrison activated, responded to threat 3394 | -9/Storage | Assisted by bots powering up and referring to "LRC-V3" 3479 | -9/Storage | Identified exit to Garrison 3486 | -9/Storage | Entered Garrison 3486 | -9/Garrison | Accompanied by 11 allies 3524 | -9/Garrison | Triggered checkpoint 3612 | -9/Garrison | Lost 3 parts (1p1n1u) 3676 | -9/Garrison | Triggered checkpoint 3676 | -9/Garrison | Triggered checkpoint 3952 | -9/Garrison | Discovered new exit (range 14) 4040 | -9/Garrison | Triggered checkpoint 4071 | -9/Garrison | Build established: Scavenger-Gunner 4090 | -9/Garrison | Triggered checkpoint 4141 | -9/Garrison | Discovered new exit (range 14) 4165 | -9/Garrison | Installed Relay Interface Framework 4222 | -9/Garrison | Garrison Relay disabled 4307 | -9/Garrison | Entered Materials 4307 | -8/Materials | Accompanied by 3 allies 4307 | -8/Materials | Evolved 2 slots: Utility x2 4623 | -8/Materials | Build established: Tank 4696 | -8/Materials | Discovered new exit (range 16) 5156 | -8/Materials | Garrison activated, responded to threat 5240 | -8/Materials | Identified exit to Garrison 5240 | -8/Materials | Entered Garrison 5316 | -8/Garrison | Triggered checkpoint 5327 | -8/Garrison | Triggered checkpoint 5364 | -8/Garrison | Destroyed 9 combat bots 5412 | -8/Garrison | Triggered checkpoint 5427 | -8/Garrison | Garrison Relay disabled 5540 | -8/Garrison | Discovered new exit (range 14) 5684 | -8/Garrison | Triggered checkpoint 5722 | -8/Garrison | Garrison Relay disabled 5802 | -8/Garrison | Discovered new exit (range 10) 5884 | -8/Garrison | Triggered checkpoint 5971 | -8/Garrison | Discovered new exit (range 15) 6020 | -8/Garrison | Expanded RIF knowledge: Command Fork 6146 | -8/Garrison | Triggered checkpoint 6160 | -8/Garrison | Garrison Relay disabled 6230 | -8/Garrison | Triggered checkpoint 6322 | -8/Garrison | Triggered checkpoint 6380 | -8/Garrison | Garrison Relay disabled 7046 | -8/Garrison | Build established: Mutant 7385 | -8/Garrison | Build established: Gunner 7793 | -8/Garrison | Entered Materials 8280 | -8/Materials | Identified exit to Garrison 8280 | -8/Materials | Entered Garrison 8320 | -8/Garrison | Triggered checkpoint 8578 | -8/Garrison | Triggered checkpoint 8680 | -8/Garrison | Discovered new exit (range 8) 8718 | -8/Garrison | Triggered checkpoint 8860 | -8/Garrison | Triggered checkpoint 8900 | -8/Garrison | Destroyed 7 combat bots 8906 | -8/Garrison | Discovered new exit (range 14) 8971 | -8/Garrison | Build established: Tank 9044 | -8/Garrison | Triggered checkpoint 9102 | -8/Garrison | Discovered new exit (range 8) 9130 | -8/Garrison | Expanded RIF knowledge: Threat Obfuscation 9176 | -8/Garrison | Triggered checkpoint 9268 | -8/Garrison | Garrison Relay disabled 9417 | -8/Garrison | Garrison Relay disabled 9568 | -8/Garrison | Build established: Mutant 9608 | -8/Garrison | Triggered checkpoint 9689 | -8/Garrison | Garrison Relay disabled 9855 | -8/Garrison | Garrison Relay disabled 9867 | -8/Garrison | Core integrity fell below 50% 9964 | -8/Garrison | Triggered checkpoint 10045 | -8/Garrison | Entered Factory 10045 | -7/Factory | Evolved 2 slots: Power x1, Utility x1 10241 | -7/Factory | Repaired Arm. Huge Wheel 10259 | -7/Factory | Build established: Tank 10445 | -7/Factory | First assault squad dispatched 10519 | -7/Factory | Identified exit to Garrison 10519 | -7/Factory | Entered Garrison 10797 | -7/Garrison | Spotted B-75 Beast 10823 | -7/Garrison | Destroyed B-75 Beast 10848 | -7/Garrison | Lost 10 parts (2p1n5u2w) 10886 | -7/Garrison | Garrison Relay disabled 11008 | -7/Garrison | Triggered checkpoint 11095 | -7/Garrison | Garrison Relay disabled 11133 | -7/Garrison | Discovered new exit (range 14) 11142 | -7/Garrison | Build established: Bothacker-Mutant 11244 | -7/Garrison | Triggered checkpoint 11602 | -7/Garrison | Triggered checkpoint 11624 | -7/Garrison | Triggered checkpoint 11709 | -7/Garrison | Garrison Relay disabled 11752 | -7/Garrison | Triggered checkpoint 11754 | -7/Garrison | Discovered new exit (range 9) 11777 | -7/Garrison | Expanded RIF knowledge: Watcher Feeds 11893 | -7/Garrison | Discovered new exit (range 8) 11904 | -7/Garrison | Triggered checkpoint 11943 | -7/Garrison | Garrison Relay disabled 12022 | -7/Garrison | Entered Factory 12022 | -6/Factory | Accompanied by 5 allies 12022 | -6/Factory | Evolved 2 slots: Utility x2 12060 | -6/Factory | Build established: Botlord-Mutant 12372 | -6/Factory | First assault squad dispatched 12601 | -6/Factory | Spotted B-75 Beast 12610 | -6/Factory | Allies destroyed B-75 Beast 12647 | -6/Factory | Garrison activated, responded to threat 12707 | -6/Factory | Identified exit to Garrison 12735 | -6/Factory | Entered Garrison 12735 | -6/Garrison | Accompanied by 4 allies 12780 | -6/Garrison | Triggered checkpoint 12842 | -6/Garrison | Triggered checkpoint 12844 | -6/Garrison | Triggered checkpoint 12852 | -6/Garrison | Triggered checkpoint 12884 | -6/Garrison | Triggered checkpoint 12954 | -6/Garrison | Discovered new exit (range 15) 12998 | -6/Garrison | Expanded RIF knowledge: Command Fork 13040 | -6/Garrison | Triggered checkpoint 13091 | -6/Garrison | Garrison Relay disabled 13268 | -6/Garrison | Triggered checkpoint 13324 | -6/Garrison | Garrison Relay disabled 13372 | -6/Garrison | Discovered new exit (range 14) 13530 | -6/Garrison | Garrison Relay disabled 13720 | -6/Garrison | Triggered checkpoint 13787 | -6/Garrison | Garrison Relay disabled 13893 | -6/Garrison | Discovered new exit (range 12) 14088 | -6/Garrison | Entered Factory 14088 | -5/Factory | Evolved 2 slots: Power x1, Utility x1 14261 | -5/Factory | Identified exit to Garrison 14391 | -5/Factory | Fabricated Arm. Huge Wheel (x2) 15210 | -5/Factory | Discovered new exit (range 3) 15435 | -5/Factory | Discovered new exit (range 6) 15445 | -5/Factory | Entered Extension 15722 | -5/Extension | Rescued a captive Derelict 15738 | -5/Extension | Rescued a captive Derelict 15834 | -5/Extension | Spotted B-75 Beast 15837 | -5/Extension | Assimilated Beast 6a with formatsys_high 15847 | -5/Extension | Spotted B-75 Beast 15858 | -5/Extension | Destroyed B-75 Beast 15893 | -5/Extension | Rescued a captive Derelict 15928 | -5/Extension | Rescued A7 16037 | -5/Extension | Rescued a captive Derelict 16038 | -5/Extension | Rescued a captive Derelict 16045 | -5/Extension | First assault squad dispatched 16390 | -5/Extension | Discovered new exit (range 10) 16391 | -5/Extension | Discovered new exit (range 6) 16437 | -5/Extension | Entered Cetus 16437 | -5/Cetus | Accompanied by 18 allies (A7) 16442 | -5/Cetus | Acquired a Cetus Manufacturing Module code from A7 16464 | -5/Cetus | Spotted Cetus Guard 16464 | -5/Cetus | Spotted Cetus Guard 16465 | -5/Cetus | Spotted Cetus Guard 16476 | -5/Cetus | Spotted Cetus Guard 16479 | -5/Cetus | Allies destroyed Cetus Guard 16481 | -5/Cetus | Allies destroyed Cetus Guard 16482 | -5/Cetus | Allies destroyed Cetus Guard 16486 | -5/Cetus | Allies destroyed Cetus Guard 16530 | -5/Cetus | Cetus Manufacturing Module disabled 16699 | -5/Cetus | Discovered new exit (range 15) 16730 | -5/Cetus | Entered Archives 16730 | -5/Archives | Accompanied by 4 allies (A7) 16753 | -5/Archives | Met Zhirov 16759 | -5/Archives | Reinforcements dispatched to Archives 16763 | -5/Archives | Unable to access archive contents 16804 | -5/Archives | Reinforcements dispatched to Archives 16806 | -5/Archives | Zhirov warped through subspace 16806 | -5/Archives | Discovered new exit (range 16) 16824 | -5/Archives | Zhirov detonated Archives 16836 | -5/Archives | Entered Hub_04(d) 16855 | -5/Hub_04(d) | Lost 3 parts (1u2w) 17041 | -5/Hub_04(d) | Discovered new exit (range 5) 17052 | -5/Hub_04(d) | Destroyed 7 combat bots 17102 | -5/Hub_04(d) | Entered Factory 17102 | -4/Factory | Evolved 2 slots: Propulsion x2 17220 | -4/Factory | Identified exit to Garrison 17315 | -4/Factory | Build established: Generator-Gunner 17670 | -4/Factory | System corruption reached 10% 18232 | -4/Factory | Entered Garrison 18340 | -4/Garrison | Triggered checkpoint 18386 | -4/Garrison | Garrison Relay disabled 18492 | -4/Garrison | Triggered checkpoint 18595 | -4/Garrison | Discovered new exit (range 12) 18692 | -4/Garrison | Build established: Bothacker-Tank 18706 | -4/Garrison | Triggered checkpoint 18811 | -4/Garrison | Discovered new exit (range 12) 18908 | -4/Garrison | Triggered checkpoint 18931 | -4/Garrison | Discovered new exit (range 11) 18957 | -4/Garrison | Expanded RIF knowledge: Alert ID Control 19076 | -4/Garrison | Lost 3 parts (3u) 19083 | -4/Garrison | Destroyed 8 combat bots 19104 | -4/Garrison | Triggered checkpoint 19119 | -4/Garrison | Garrison Relay disabled 19324 | -4/Garrison | Triggered checkpoint 19422 | -4/Garrison | Triggered checkpoint 19444 | -4/Garrison | Garrison Relay disabled 19750 | -4/Garrison | Entered Factory 19750 | -4/Factory | Accompanied by 2 allies 19972 | -4/Factory | Garrison activated, responded to threat 20000 | -4/Factory | First assault squad dispatched 20414 | -4/Factory | Identified exit to Garrison 20414 | -4/Factory | Entered Garrison 20473 | -4/Garrison | Triggered checkpoint 20535 | -4/Garrison | Triggered checkpoint 20556 | -4/Garrison | Destroyed 9 combat bots 20630 | -4/Garrison | Discovered new exit (range 8) 20649 | -4/Garrison | Expanded RIF knowledge: Robot Detection 20698 | -4/Garrison | Triggered checkpoint 20734 | -4/Garrison | Garrison Relay disabled 20887 | -4/Garrison | Entered Research 20887 | -3/Research | Evolved 2 slots: Utility x2 21187 | -3/Research | Build established: Botlord-Gunner 21293 | -3/Research | Lost 3 parts (1n2w) 21632 | -3/Research | Found Quantum Capacitor 21639 | -3/Research | Cargo convoy interrupted 21679 | -3/Research | Spotted Executioner 22422 | -3/Research | Found Hvy. Reactive Plating 22725 | -3/Research | Build established: Bothacker-Tank 22737 | -3/Research | Found Gamma Bomb Array 22743 | -3/Research | Discovered new exit (range 3) 22822 | -3/Research | Identified exit to Research 23152 | -3/Research | Garrison activated, responded to threat 23246 | -3/Research | Identified exit to Garrison 23264 | -3/Research | Entered Garrison 23315 | -3/Garrison | Spotted B-86 Titan 23409 | -3/Garrison | Triggered checkpoint 23409 | -3/Garrison | Triggered checkpoint 23439 | -3/Garrison | Destroyed B-86 Titan 23538 | -3/Garrison | Triggered checkpoint 23550 | -3/Garrison | System corruption reached 10% 23685 | -3/Garrison | Discovered exit to Research (range 10) 23826 | -3/Garrison | Discovered exit to Research (range 8) 23881 | -3/Garrison | Build established: Scavenger-Mutant 24043 | -3/Garrison | Discovered exit to Research (range 12) 24087 | -3/Garrison | Expanded RIF knowledge: Threat Obfuscation 24160 | -3/Garrison | Triggered checkpoint 24210 | -3/Garrison | Garrison Relay disabled 24412 | -3/Garrison | Triggered checkpoint 24503 | -3/Garrison | Garrison Relay disabled 24740 | -3/Garrison | Triggered checkpoint 24802 | -3/Garrison | Garrison Relay disabled 24826 | -3/Garrison | Build established: Botlord-Mutant 25116 | -3/Garrison | Triggered checkpoint 25120 | -3/Garrison | Triggered checkpoint 25195 | -3/Garrison | Garrison Relay disabled 25595 | -3/Garrison | System corruption reached 30% 25813 | -3/Garrison | Entered Research 25813 | -2/Research | Accompanied by 5 allies 25813 | -2/Research | Evolved 2 slots: Propulsion x2 26559 | -2/Research | Discovered new exit (range 8) 26640 | -2/Research | Found Prototype Device 26640 | -2/Research | Identified Exp. Thermal Shield 26688 | -2/Research | Entered Access 26688 | -1/Access | Evolved 2 slots: Utility x2 27353 | -1/Access | Spotted B-99 Colossus 28095 | -1/Access | Allied Derelicts emerged from ambush trap array 28136 | -1/Access | Build established: Botlord-Gunner 28195 | -1/Access | Found Ragnarok Missile Launcher 28457 | -1/Access | System corruption reached 10% 28572 | -1/Access | Spotted B-99 Colossus 28825 | -1/Access | Energy Cycler disabled 29361 | -1/Access | Spotted B-99 Colossus 29368 | -1/Access | Destroyed B-99 Colossus 29376 | -1/Access | Spotted B-99 Colossus 29403 | -1/Access | Destroyed B-99 Colossus 29443 | -1/Access | Lost 3 parts (1n2w) 29483 | -1/Access | Found Hvy. Reflective Plating 29487 | -1/Access | Found Unknown Protection 29510 | -1/Access | Discovered new exit (range 5) 29519 | *** | Escaped! Last Messages --------------- 29460_ Activated siege mode. 29466_ Ended siege mode. 29470_ Dropped Imp. Heavy Siege Treads. 29470_ Acquired Unknown Treads. 29470_ Identified Arm. Heavy Treads. 29475_ Dropped Adv. Heavy Siege Treads. 29476_ Acquired Arm. Heavy Treads. 29479_ Acquired Unknown Protection. 29483_ Acquired Hvy. Reflective Plating. 29486_ Dropped Med. Insulated Plating. 29487_ Acquired Unknown Protection. 29488_ Dropped Unknown Protection. 29492_ Imp. System Restoration Module purges 1% of system corruption (2%). 29504_ Imp. System Restoration Module purges 1% of system corruption (1%). 29510_ Main Access Shell breached. 29510_ EXIT=FOUND 29515_ Imp. System Restoration Module purges 1% of system corruption (0%). [Achievement: 50k Club] [Achievement: Punisher] [Achievement: Victory By Combat] Map ----- +----------------------------------------------------+ | #?????????? =%=# #???# | | ###########?? [%# """""" #???####+# | | [ #??? [# """""" ####### | | #????? # """""" + # | | ! #??????" """ # """""" ####### # | | +??????"T""" + % """""" #?????# # | | """ """ #??????###### # #?????# # | | """T""" #???????????# #% #?????# # | | ###########???????????# # #?????# # | | #######????????????#### ""#########+######## # | | #######??????# #?# + # | | # " ?????# #?# # # | | # """" ????# = #?# # # | | # """"" ? #?# [ #?# ?+ # | | # """"" #?# ! #?# ?########## # | | ####### """" #?#!!* #?# ???????????? # | | ####### " #?#= #?# ???????????? ? | | [#! #?#""""" """"#?# ????????????? ? | | %+! #??????" "?????# ???????????????? | | #### *#= #??????" "?????#????????????????? | | ???# # #?#""""" """"#??????????????????? | | ???# # #?# #??????????????????? | | ???# # #?# "" """ #??????????????????? | | ???# # #????" "? #??????????????????? | | ???# # #????" "" "??#??????????????????? | | ???# # #????" "@ "?????????????????????? | | ???# ############????" "?????????????????????? | | #### #??###%#####????""""""?????????????????????? | | # #?? != #???????????????????????????????? | | # #?? !!! #???????????????????????????????? | | # #??"" !!! #???????????????????????????????? | | # #?#" !!! #???????????????????????????????? | | # #?#"T #???????????????????????????????? | | # #?#"" #???????????????????????????????? | | + #?#"" ] #???????????????????????????????? | | # #?# ????????????????????????????????? | | # #??? ??????????????????????????????????? | | # ######+#######"" ??????????????????????? | | # ?????????????????????? | | # ?????????????????????? | | #######+#################????????????????????????? | | ????? ???????????????????????????????????????? | | ??? ?????????????????????????????????????? | | ?# ???????????????????????????????????? | | ?# #??????????????????????????????????? | | ?# #??????????????????????????????????? | | ?# """"" #??????????????????????????????????? | | ?# """""""" #??????????????????????????????????? | | ?# """""""" #??????????????????????????????????? | | ?# """""? #??????????????????????????????????? | +----------------------------------------------------+ Best States ------------- Heat Dissipation 145 Coolant Potential 100 Energy Generation 65 Energy Capacity 790 Matter Stores 300 Matter Capacity 300 Sight Range 16 Terrain Scan Density 10 ECM Strength 1 Jamming Range 16 Additional Mass Support 12 EM Shielding 3 Heat Shielding 100 Armor Coverage 2400 Resistance: KI 40 Resistance: TH 30 Weapon Shielding 66 Weapon Cycling 20 Evasion (%) 40 Target Analysis 8 Recoil Reduction 6 Energy Filtering 30 Particle Charging 20 Kinecelleration 40 Overload Amplification 50 Relay Coupler Types 147 Relay Coupler Value 5 Item Schematics ----------------- Lgt. Treads | -9/Materials | Scanalyzed Wheel | -9/Materials | Scanalyzed Aluminum Leg | -9/Materials | Extracted Arm. Huge Wheel | -6/Factory | Scanalyzed Robot Schematics ------------------ None Fabricated ------------ Arm. Huge Wheel | x2 | -5/Factory Alien Tech Used ----------------- None Achievements -------------- 50k Club Beloved Generalissimo Giant Slayer Punisher Pwned Victory By Combat Challenges ------------ None Game ------ Seed MatterLightningRedistributor Manual? 0 Play Time 06:29:52 Cumulative 263.5 hours Start 2021.07.13 @ 20:10:32 End 2021.07.14 @ 19:52:00 Sessions 5 Manual Loads 0 Difficulty Rogue Special Mode None Game No. 143 Rogue 143 Adventurer 0 Explorer 0 Win Type 0 Total 6 Types 5/0/0/1/0/0/0/0/0 Lore% 72 Gallery% 80 Achievement% 58 Wizard Run 0 Options --------- ASCII 0 Keyboard 0 Movement Numpad Keybinds 0 Fullscreen 1 Font 18/SmallcapsGlow Map View 76x50 Tactical HUD 1 Map Filters NONE Filters NONE Steam 1 RUN: be9b58fc-637d-4297-9820-4d641a37d220